bitfinex-derivatives/quotes_BTCF0:USTF0_20251220
["timestamp","ask_amount","ask_price","bid_price","bid_amount"]
[1766243465398,0.00016995,88254.0,88236.0,0.0113383]
[1766243465594,0.05521035,88253.0,88236.0,0.0113383]
[1766243465790,0.02685035,88252.0,88236.0,0.0113383]
[1766243467299,0.22854295,88250.0,88232.0,0.0113387]
[1766243468000,0.02836,88253.0,88232.0,0.0113387]
[1766243468198,0.02685069,88252.0,88232.0,0.0113387]
[1766243468401,0.02685069,88251.0,88232.0,0.0113387]
[1766243468699,0.02836,88253.0,88232.0,0.0113387]
[1766243468899,0.0268508,88252.0,88232.0,0.0113387]
[1766243469092,0.0268508,88251.0,88232.0,0.0113387]
[1766243469295,0.02685092,88250.0,88232.0,0.0113387]
[1766243469599,0.02836,88253.0,88232.0,0.0113387]
[1766243469797,0.02685092,88252.0,88232.0,0.0113387]
[1766243470096,0.02685092,88251.0,88232.0,0.0113387]
[1766243470295,0.02836,88253.0,88232.0,0.0113387]
[1766243470492,0.02685102,88252.0,88232.0,0.0113387]
[1766243470796,0.02685102,88251.0,88232.0,0.0113387]
[1766243470998,0.02836,88253.0,88235.0,0.0113384]
[1766243471197,0.02685103,88252.0,88235.0,0.0113384]
[1766243471396,0.02685103,88251.0,88235.0,0.0113384]
[1766243471598,0.02836,88253.0,88235.0,0.0113384]
[1766243471798,0.02685122,88252.0,88235.0,0.0113384]
[1766243471999,0.02685122,88251.0,88235.0,0.0113384]
[1766243472199,0.02836,88253.0,88235.0,0.0113384]
[1766243472399,0.02685147,88252.0,88235.0,0.0113384]
[1766243472599,0.02685147,88251.0,88235.0,0.0113384]
[1766243472899,0.02836,88253.0,88235.0,0.0113384]
[1766243473101,0.02685108,88252.0,88235.0,0.0113384]
[1766243473400,0.02685108,88251.0,88235.0,0.0113384]
[1766243473596,0.02836,88253.0,88235.0,0.0113384]
[1766243473905,0.02685137,88252.0,88235.0,0.0113384]
[1766243474101,0.02685137,88251.0,88235.0,0.0113384]
[1766243474298,0.02836,88253.0,88235.0,0.0113384]
[1766243474498,0.02685167,88252.0,88235.0,0.0113384]
[1766243474701,0.02685167,88251.0,88235.0,0.0113384]
[1766243475000,0.02836,88253.0,88235.0,0.0113384]
[1766243475200,0.02685168,88252.0,88235.0,0.0113384]
[1766243475399,0.22854811,88250.0,88235.0,0.0113384]
[1766243477504,0.22854811,88250.0,88231.0,0.0113388]
[1766243480202,0.22854866,88250.0,88231.0,0.0113388]
[1766243483212,0.22854866,88250.0,88234.0,0.0113385]
[1766243485113,0.02689019,88249.0,88234.0,0.0113385]
[1766243485304,0.22854866,88250.0,88234.0,0.0113385]
[1766243485503,0.02689042,88249.0,88234.0,0.0113385]
[1766243485703,0.22854866,88250.0,88234.0,0.0113385]
[1766243485912,0.02689042,88249.0,88234.0,0.0113385]
[1766243486110,0.22854866,88250.0,88234.0,0.0113385]
[1766243486415,0.02689223,88249.0,88234.0,0.0113385]
[1766243486599,0.22854866,88250.0,88234.0,0.0113385]
[1766243486905,0.02689246,88249.0,88234.0,0.0113385]
[1766243487107,0.02836,88248.0,88234.0,0.0113385]
[1766243490511,0.02836,88248.0,88240.0,0.0113378]
[1766243490718,0.00016995,88254.0,88240.0,0.0113378]
[1766243490918,0.02689777,88253.0,88240.0,0.0113378]
[1766243491216,0.00012995,88254.0,88240.0,0.0113378]
[1766243491416,0.22854866,88250.0,88240.0,0.0113378]
[1766243492316,0.22854866,88250.0,88236.0,0.0113382]
[1766243496422,0.22854866,88250.0,88239.0,0.0113379]
[1766243497017,0.02836,88251.0,88239.0,0.0113379]
[1766243497311,0.00012995,88254.0,88245.0,0.011337]
[1766243498118,5e-08,88254.0,88245.0,0.011337]
[1766243498424,5e-08,88254.0,88248.0,0.0113367]
[1766243501723,5e-08,88254.0,88249.0,0.02836]
[1766243514239,5e-08,88254.0,88249.0,0.0396966]
[1766243516841,5e-08,88254.0,88252.0,0.0113362]
[1766243519449,5e-08,88254.0,88249.0,0.02836]
[1766243522054,5e-08,88254.0,88242.0,0.00016995]
[1766243522352,5e-08,88254.0,88243.0,0.02836]
[1766243546273,5e-08,88254.0,88244.0,0.0113372]
[1766243551375,5e-08,88254.0,88243.0,0.02836]
[1766243565393,5e-08,88254.0,88242.0,0.00016995]
[1766243565595,5e-08,88254.0,88242.0,0.02852995]
[1766243583513,5e-08,88254.0,88242.0,0.00016995]
[1766243583716,5e-08,88254.0,88242.0,0.02852995]
[1766243586822,5e-08,88254.0,88242.0,0.03986745]
[1766243587818,5e-08,88254.0,88245.0,0.0113371]
[1766243597827,5e-08,88254.0,88245.0,0.0112971]
[1766243600621,5e-08,88254.0,88242.0,0.02852995]
[1766243601638,5e-08,88254.0,88242.0,0.03986745]
[1766243605030,5e-08,88254.0,88245.0,0.0113371]
[1766243607728,5e-08,88254.0,88248.0,0.0113367]
[1766243607927,5e-08,88254.0,88251.0,0.0113363]
[1766243610230,5e-08,88254.0,88248.0,0.02836]
[1766243612331,5e-08,88254.0,88249.0,0.0113366]
[1766243614441,5e-08,88254.0,88248.0,0.02836]
[1766243618141,5e-08,88254.0,88248.0,0.0396967]
[1766243618442,5e-08,88254.0,88251.0,0.0113363]
[1766243619537,5e-08,88254.0,88248.0,0.02836]
[1766243620936,5e-08,88254.0,88242.0,0.00016995]
[1766243621136,0.0113366,88250.0,88234.0,0.00152]
[1766243621346,0.22848961,88244.0,88234.0,0.00152]
[1766243623842,0.0113378,88240.0,88220.0,0.0113403]
[1766243624040,0.22848961,88231.0,88220.0,0.0113403]
[1766243624241,0.21848961,88231.0,88220.0,0.0113403]
[1766243627949,0.22848961,88230.0,88220.0,0.0113403]
[1766243628546,0.22862104,88230.0,88220.0,0.0113403]
[1766243631249,0.00016995,88234.0,88220.0,0.0113403]
[1766243639357,0.00016995,88234.0,88223.0,0.0113399]
[1766243639559,0.00016995,88234.0,88219.0,0.02836]
[1766243639752,0.02836,88239.0,88227.0,0.0113394]
[1766243639957,0.01836,88239.0,88227.0,0.0113394]
[1766243640767,0.0113367,88249.0,88227.0,0.0113394]
[1766243640768,0.00016995,88242.0,88227.0,0.0113394]
[1766243640957,0.20862104,88240.0,88230.0,0.011339]
[1766243641158,0.02836,88247.0,88230.0,0.23996004]
[1766243642262,0.02852995,88247.0,88230.0,0.24012999]
[1766243642564,0.02852995,88247.0,88230.0,0.01150895]
[1766243647873,0.00016995,88247.0,88230.0,0.01150895]
[1766243648171,0.02852995,88247.0,88230.0,0.01150895]
[1766243650265,0.02852995,88247.0,88230.0,0.00016995]
[1766243650468,0.22862104,88240.0,88230.0,0.00016995]
[1766243655377,0.0113371,88246.0,88230.0,0.00016995]
[1766243655669,0.02690018,88245.0,88230.0,0.00016995]
[1766243655869,0.0113371,88246.0,88230.0,0.00016995]
[1766243656072,0.02690016,88245.0,88230.0,0.00016995]
[1766243656266,0.0113371,88246.0,88230.0,0.00016995]
[1766243656470,0.02690033,88245.0,88230.0,0.00016995]
[1766243656667,0.0113371,88246.0,88230.0,0.00016995]
[1766243656870,0.02690033,88245.0,88230.0,0.00016995]
[1766243657077,0.0113371,88246.0,88230.0,0.00016995]
[1766243657262,0.0113374,88243.0,88230.0,0.00016995]
[1766243657463,0.01150685,88247.0,88230.0,0.00016995]
[1766243657663,0.02689963,88246.0,88230.0,0.00016995]
[1766243657872,0.01150685,88247.0,88230.0,0.00016995]
[1766243658171,0.00016995,88247.0,88230.0,0.01150895]
[1766243663480,0.0268546,88246.0,88230.0,0.01150895]
[1766243663668,0.00016995,88247.0,88230.0,0.01150895]
[1766243663866,0.02685459,88246.0,88230.0,0.01150895]
[1766243664065,0.00016995,88247.0,88230.0,0.01150895]
[1766243664275,0.02685459,88246.0,88230.0,0.01150895]
[1766243664472,0.00016995,88247.0,88230.0,0.01150895]
[1766243664669,0.02685507,88246.0,88230.0,0.01150895]
[1766243664876,0.00016995,88247.0,88230.0,0.01150895]
[1766243665064,0.02685507,88246.0,88230.0,0.01150895]
[1766243665267,0.00016995,88247.0,88230.0,0.01150895]
[1766243668087,0.00016995,88247.0,88230.0,0.00016995]
[1766243668274,0.02685966,88246.0,88230.0,0.00016995]
[1766243668474,0.00016995,88247.0,88230.0,0.00016995]
[1766243668774,0.02685968,88246.0,88230.0,0.00016995]
[1766243668974,0.00016995,88247.0,88230.0,0.00016995]
[1766243669174,0.02685968,88246.0,88230.0,0.00016995]
[1766243669470,0.00016995,88247.0,88230.0,0.00016995]
[1766243669783,0.0268623,88246.0,88230.0,0.00016995]
[1766243669977,0.00016995,88247.0,88230.0,0.00016995]
[1766243670168,0.02686229,88246.0,88230.0,0.00016995]
[1766243670369,0.00016995,88247.0,88230.0,0.00016995]
[1766243670572,0.02686219,88246.0,88230.0,0.00016995]
[1766243670878,0.00016995,88247.0,88230.0,0.00016995]
[1766243671078,0.02686219,88246.0,88230.0,0.00016995]
[1766243671277,0.00016995,88247.0,88230.0,0.00016995]
[1766243671472,0.02686201,88246.0,88230.0,0.00016995]
[1766243671679,0.00016995,88247.0,88230.0,0.00016995]
[1766243671879,0.02686232,88246.0,88230.0,0.00016995]
[1766243672083,0.00016995,88247.0,88230.0,0.00016995]
[1766243672383,0.02686232,88246.0,88230.0,0.00016995]
[1766243672683,0.00016995,88247.0,88230.0,0.00016995]
[1766243672884,0.02686226,88246.0,88230.0,0.00016995]
[1766243673085,0.00016995,88247.0,88230.0,0.00016995]
[1766243673287,0.02686226,88246.0,88230.0,0.00016995]
[1766243673584,0.00016995,88247.0,88230.0,0.00016995]
[1766243673783,0.02686222,88246.0,88230.0,0.00016995]
[1766243673979,0.00016995,88247.0,88230.0,0.00016995]
[1766243674181,0.02686222,88246.0,88230.0,0.00016995]
[1766243674380,0.00016995,88247.0,88230.0,0.00016995]
[1766243674581,0.02686219,88246.0,88230.0,0.00016995]
[1766243674779,0.00016995,88247.0,88230.0,0.00016995]
[1766243674981,0.026862,88246.0,88230.0,0.00016995]
[1766243675180,0.00016995,88247.0,88230.0,0.00016995]
[1766243675384,0.026862,88246.0,88230.0,0.00016995]
[1766243675685,0.00016995,88247.0,88230.0,0.00016995]
[1766243675884,0.02686198,88246.0,88230.0,0.00016995]
[1766243676086,0.00016995,88247.0,88230.0,0.00016995]
[1766243676286,0.02686183,88246.0,88230.0,0.00016995]
[1766243676481,0.00016995,88247.0,88230.0,0.00016995]
[1766243676690,0.02686175,88246.0,88230.0,0.00016995]
[1766243676985,0.00016995,88247.0,88230.0,0.00016995]
[1766243677182,0.02686175,88246.0,88230.0,0.00016995]
[1766243677389,0.00016995,88247.0,88230.0,0.00016995]
[1766243677589,0.02686188,88246.0,88230.0,0.00016995]
[1766243677784,0.00016995,88247.0,88230.0,0.00016995]
[1766243677985,0.0268618,88246.0,88230.0,0.00016995]
[1766243678190,0.00016995,88247.0,88230.0,0.00016995]
[1766243678387,0.0268618,88246.0,88230.0,0.00016995]
[1766243678588,0.00016995,88247.0,88230.0,0.00016995]
[1766243678790,0.02686175,88246.0,88230.0,0.00016995]
[1766243678982,0.00016995,88247.0,88230.0,0.00016995]
[1766243679283,0.02686175,88246.0,88230.0,0.00016995]
[1766243679482,0.00016995,88247.0,88230.0,0.00016995]
[1766243679684,0.02686163,88246.0,88230.0,0.00016995]
[1766243679883,0.00016995,88247.0,88230.0,0.00016995]
[1766243680083,0.02686162,88246.0,88230.0,0.00016995]
[1766243680286,0.00016995,88247.0,88230.0,0.00016995]
[1766243680578,0.02686214,88246.0,88230.0,0.00016995]
[1766243680785,0.00016995,88247.0,88230.0,0.00016995]
[1766243680984,0.02686229,88246.0,88230.0,0.00016995]
[1766243681283,0.00016995,88247.0,88230.0,0.00016995]
[1766243681479,0.02686251,88246.0,88230.0,0.00016995]
[1766243681684,0.00016995,88247.0,88230.0,0.00016995]
[1766243681884,0.02686251,88246.0,88230.0,0.00016995]
[1766243682081,0.00016995,88247.0,88230.0,0.00016995]
[1766243682286,0.02686251,88246.0,88230.0,0.00016995]
[1766243682488,0.00016995,88247.0,88230.0,0.00016995]
[1766243682687,0.02686278,88246.0,88230.0,0.00016995]
[1766243682996,0.00016995,88247.0,88230.0,0.00016995]
[1766243683294,0.02686278,88246.0,88230.0,0.00016995]
[1766243683494,0.00016995,88247.0,88230.0,0.00016995]
[1766243683694,0.02686297,88246.0,88230.0,0.00016995]
[1766243683892,0.00016995,88247.0,88230.0,0.00016995]
[1766243684092,0.02686314,88246.0,88230.0,0.00016995]
[1766243684293,0.00016995,88247.0,88230.0,0.00016995]
[1766243684495,0.0268636,88246.0,88230.0,0.00016995]
[1766243684796,0.00016995,88247.0,88230.0,0.00016995]
[1766243684994,0.0268636,88246.0,88230.0,0.00016995]
[1766243685195,0.00016995,88247.0,88230.0,0.00016995]
[1766243685395,0.0268636,88246.0,88230.0,0.00016995]
[1766243685595,0.00016995,88247.0,88230.0,0.00016995]
[1766243685795,0.02686421,88246.0,88230.0,0.00016995]
[1766243685987,0.00016995,88247.0,88230.0,0.00016995]
[1766243686183,0.02686421,88246.0,88230.0,0.00016995]
[1766243686388,0.00016995,88247.0,88230.0,0.00016995]
[1766243686588,0.02686497,88246.0,88230.0,0.00016995]
[1766243686788,0.00016995,88247.0,88230.0,0.00016995]
[1766243686988,0.02686497,88246.0,88230.0,0.00016995]
[1766243687284,0.00016995,88247.0,88230.0,0.00016995]
[1766243687487,0.02686675,88246.0,88230.0,0.00016995]
[1766243687787,0.00016995,88247.0,88230.0,0.00016995]
[1766243687983,0.02686683,88246.0,88230.0,0.00016995]
[1766243688191,0.00016995,88247.0,88230.0,0.00016995]
[1766243688392,0.02686683,88246.0,88230.0,0.00016995]
[1766243688592,0.00016995,88247.0,88230.0,0.00016995]
[1766243688793,0.02686686,88246.0,88230.0,0.00016995]
[1766243688993,0.00016995,88247.0,88230.0,0.00016995]
[1766243689189,0.02686686,88246.0,88230.0,0.00016995]
[1766243689396,0.00016995,88247.0,88230.0,0.00016995]
[1766243689589,0.02686688,88246.0,88230.0,0.00016995]
[1766243689795,0.00016995,88247.0,88230.0,0.00016995]
[1766243689989,0.02684631,88246.0,88230.0,0.00016995]
[1766243690200,0.00016995,88247.0,88230.0,0.00016995]
[1766243690399,0.02684631,88246.0,88230.0,0.00016995]
[1766243690598,0.00016995,88247.0,88230.0,0.00016995]
[1766243690800,0.02684632,88246.0,88230.0,0.00016995]
[1766243691000,0.00016995,88247.0,88230.0,0.00016995]
[1766243691202,0.02684632,88246.0,88230.0,0.00016995]
[1766243691403,0.00016995,88247.0,88230.0,0.00016995]
[1766243691605,0.02684632,88246.0,88230.0,0.00016995]
[1766243691808,0.00016995,88247.0,88230.0,0.00016995]
[1766243692010,0.02684632,88246.0,88230.0,0.00016995]
[1766243692314,0.00016995,88247.0,88230.0,0.00016995]
[1766243692498,0.02684623,88246.0,88230.0,0.00016995]
[1766243692697,0.00016995,88247.0,88230.0,0.00016995]
[1766243692903,0.0268463,88246.0,88230.0,0.00016995]
[1766243693209,0.00016995,88247.0,88230.0,0.00016995]
[1766243693412,0.0268463,88246.0,88230.0,0.00016995]
[1766243693612,0.00016995,88247.0,88230.0,0.00016995]
[1766243693809,0.02684606,88246.0,88230.0,0.00016995]
[1766243694005,0.00016995,88247.0,88230.0,0.00016995]
[1766243694204,0.0268463,88246.0,88230.0,0.00016995]
[1766243694412,0.00016995,88247.0,88230.0,0.00016995]
[1766243694611,0.02684644,88246.0,88230.0,0.00016995]
[1766243694814,0.00016995,88247.0,88230.0,0.00016995]
[1766243695106,0.02684644,88246.0,88230.0,0.00016995]
[1766243695316,0.00016995,88247.0,88230.0,0.00016995]
[1766243695611,0.02684663,88246.0,88230.0,0.00016995]
[1766243695804,0.00016995,88247.0,88230.0,0.00016995]
[1766243696006,0.02684663,88246.0,88230.0,0.00016995]
[1766243696304,0.00016995,88247.0,88230.0,0.00016995]
[1766243696506,0.02684668,88246.0,88230.0,0.00016995]
[1766243696804,0.00016995,88247.0,88230.0,0.00016995]
[1766243697006,0.02684668,88246.0,88230.0,0.00016995]
[1766243697207,0.00016995,88247.0,88230.0,0.00016995]
[1766243697406,0.02684668,88246.0,88230.0,0.00016995]
[1766243697604,0.00016995,88247.0,88230.0,0.00016995]
[1766243697900,0.02684658,88246.0,88230.0,0.00016995]
[1766243698213,0.00016995,88247.0,88230.0,0.00016995]
[1766243698414,0.02684657,88246.0,88230.0,0.00016995]
[1766243698614,0.00016995,88247.0,88230.0,0.00016995]
[1766243698814,0.02684657,88246.0,88230.0,0.00016995]
[1766243699113,0.00016995,88247.0,88230.0,0.00016995]
[1766243699309,0.02684667,88246.0,88230.0,0.00016995]
[1766243699511,0.00016995,88247.0,88230.0,0.00016995]
[1766243699715,0.02684668,88246.0,88230.0,0.00016995]
[1766243699913,0.00016995,88247.0,88230.0,0.00016995]
[1766243700214,0.02684668,88246.0,88230.0,0.00016995]
[1766243700410,0.00016995,88247.0,88230.0,0.00016995]
[1766243700612,0.02684677,88246.0,88230.0,0.00016995]
[1766243700808,0.00016995,88247.0,88230.0,0.00016995]
[1766243701116,0.02684677,88246.0,88230.0,0.00016995]
[1766243701304,0.00016995,88247.0,88230.0,0.00016995]
[1766243701502,0.02684691,88246.0,88230.0,0.00016995]
[1766243701702,0.00016995,88247.0,88230.0,0.00016995]
[1766243701902,0.02684691,88246.0,88230.0,0.00016995]
[1766243702111,0.00016995,88247.0,88230.0,0.00016995]
[1766243702311,0.02684691,88246.0,88230.0,0.00016995]
[1766243702513,0.00016995,88247.0,88230.0,0.00016995]
[1766243702809,0.02684692,88246.0,88230.0,0.00016995]
[1766243703011,0.00016995,88247.0,88230.0,0.00016995]
[1766243703308,0.02684692,88246.0,88230.0,0.00016995]
[1766243703508,0.02684707,88245.0,88230.0,0.00016995]
[1766243703711,0.00016995,88247.0,88230.0,0.00016995]
[1766243704010,0.02684707,88246.0,88230.0,0.00016995]
[1766243704210,0.02684707,88245.0,88230.0,0.00016995]
[1766243704411,0.00016995,88247.0,88230.0,0.00016995]
[1766243704611,0.02684695,88246.0,88230.0,0.00016995]
[1766243704817,0.02684695,88245.0,88230.0,0.00016995]
[1766243705019,0.00016995,88247.0,88230.0,0.00016995]
[1766243705219,0.02684695,88246.0,88230.0,0.00016995]
[1766243705417,0.02684695,88245.0,88230.0,0.00016995]
[1766243705718,0.00016995,88247.0,88230.0,0.00016995]
[1766243705918,0.02684685,88246.0,88230.0,0.00016995]
[1766243706114,0.02684685,88245.0,88230.0,0.00016995]
[1766243706412,0.00016995,88247.0,88230.0,0.00016995]
[1766243706613,0.02684677,88246.0,88230.0,0.00016995]
[1766243706910,0.02684677,88245.0,88230.0,0.00016995]
[1766243707113,0.00016995,88247.0,88230.0,0.00016995]
[1766243707313,0.02684677,88246.0,88230.0,0.00016995]
[1766243707513,0.02684677,88245.0,88230.0,0.00016995]
[1766243707720,0.00016995,88247.0,88230.0,0.00016995]
[1766243707909,0.0268467,88246.0,88230.0,0.00016995]
[1766243708216,0.0268467,88245.0,88230.0,0.00016995]
[1766243708414,0.00016995,88247.0,88230.0,0.00016995]
[1766243708615,0.02684663,88246.0,88230.0,0.00016995]
[1766243708915,0.02684663,88245.0,88230.0,0.00016995]
[1766243709106,0.00016995,88247.0,88230.0,0.00016995]
[1766243709309,0.02684663,88246.0,88230.0,0.00016995]
[1766243709506,0.02684658,88245.0,88230.0,0.00016995]
[1766243709705,0.00016995,88247.0,88230.0,0.00016995]
[1766243709910,0.02684658,88246.0,88230.0,0.00016995]
[1766243710112,0.02684658,88245.0,88230.0,0.00016995]
[1766243710315,0.00016995,88247.0,88230.0,0.00016995]
[1766243710505,0.02684658,88246.0,88230.0,0.00016995]
[1766243710709,0.02684658,88245.0,88230.0,0.00016995]
[1766243711009,0.00016995,88247.0,88230.0,0.00016995]
[1766243711206,0.02684658,88246.0,88230.0,0.00016995]
[1766243711506,0.02684658,88245.0,88230.0,0.00016995]
[1766243711819,0.00016995,88247.0,88230.0,0.00016995]
[1766243712016,0.02684636,88246.0,88230.0,0.00016995]
[1766243712217,0.02684636,88245.0,88230.0,0.00016995]
[1766243712420,0.00016995,88247.0,88230.0,0.00016995]
[1766243712615,0.02684616,88246.0,88230.0,0.00016995]
[1766243712920,0.02684616,88245.0,88230.0,0.00016995]
[1766243713120,0.00016995,88247.0,88230.0,0.00016995]
[1766243713319,0.02684601,88246.0,88230.0,0.00016995]
[1766243713520,0.02684601,88245.0,88230.0,0.00016995]
[1766243713722,0.00016995,88247.0,88230.0,0.00016995]
[1766243713913,0.02684606,88246.0,88230.0,0.00016995]
[1766243714114,0.00016995,88247.0,88230.0,0.00016995]
[1766243714115,0.02684606,88245.0,88230.0,0.00016995]
[1766243714317,0.00016995,88247.0,88230.0,0.00016995]
[1766243714516,0.0268458,88246.0,88230.0,0.00016995]
[1766243714722,0.0268458,88245.0,88230.0,0.00016995]
[1766243715021,0.00016995,88247.0,88230.0,0.00016995]
[1766243715221,0.02684578,88246.0,88230.0,0.00016995]
[1766243715422,0.02684578,88245.0,88230.0,0.00016995]
[1766243715623,0.00016995,88247.0,88230.0,0.00016995]
[1766243715822,0.02684575,88246.0,88230.0,0.00016995]
[1766243716121,0.02684575,88245.0,88230.0,0.00016995]
[1766243716310,0.00016995,88247.0,88230.0,0.00016995]
[1766243716510,0.0268457,88246.0,88230.0,0.00016995]
[1766243716714,0.0268457,88245.0,88230.0,0.00016995]
[1766243717010,0.00016995,88247.0,88230.0,0.00016995]
[1766243717210,0.0268457,88246.0,88230.0,0.00016995]
[1766243717410,0.0268457,88245.0,88230.0,0.00016995]
[1766243717622,0.00016995,88247.0,88230.0,0.00016995]
[1766243717823,0.02684572,88246.0,88230.0,0.00016995]
[1766243718018,0.02684572,88245.0,88230.0,0.00016995]
[1766243718223,0.00016995,88247.0,88230.0,0.00016995]
[1766243718423,0.02684572,88246.0,88230.0,0.00016995]
[1766243718717,0.02684572,88245.0,88230.0,0.00016995]
[1766243718919,0.00016995,88247.0,88230.0,0.00016995]
[1766243719220,0.02684572,88246.0,88230.0,0.00016995]
[1766243719424,0.02684572,88245.0,88230.0,0.00016995]
[1766243719620,0.00016995,88247.0,88230.0,0.00016995]
[1766243719921,0.02686857,88246.0,88230.0,0.00016995]
[1766243720226,0.02686857,88245.0,88230.0,0.00016995]
[1766243720421,0.00016995,88247.0,88230.0,0.00016995]
[1766243720622,0.02686858,88246.0,88230.0,0.00016995]
[1766243720821,0.02686858,88245.0,88230.0,0.00016995]
[1766243721021,0.00016995,88247.0,88230.0,0.00016995]
[1766243721227,0.02686858,88246.0,88230.0,0.00016995]
[1766243721427,0.02686858,88245.0,88230.0,0.00016995]
[1766243721631,0.00016995,88247.0,88230.0,0.00016995]
[1766243721925,0.0268686,88246.0,88230.0,0.00016995]
[1766243722126,0.0268686,88245.0,88230.0,0.00016995]
[1766243722328,0.00016995,88247.0,88230.0,0.00016995]
[1766243722627,0.02686868,88246.0,88230.0,0.00016995]
[1766243722827,0.02686868,88245.0,88230.0,0.00016995]
[1766243723027,0.00016995,88247.0,88230.0,0.00016995]
[1766243723327,0.02686868,88246.0,88230.0,0.00016995]
[1766243723626,0.02686868,88245.0,88230.0,0.00016995]
[1766243723828,0.00016995,88247.0,88230.0,0.00016995]
[1766243724023,0.02686875,88246.0,88230.0,0.00016995]
[1766243724228,0.02686875,88245.0,88230.0,0.00016995]
[1766243724429,0.00016995,88247.0,88230.0,0.00016995]
[1766243724728,0.0268688,88246.0,88230.0,0.00016995]
[1766243724917,0.0268688,88245.0,88230.0,0.00016995]
[1766243725120,0.00016995,88247.0,88230.0,0.00016995]
[1766243725321,0.0268688,88246.0,88230.0,0.00016995]
[1766243725525,0.0268688,88245.0,88230.0,0.00016995]
[1766243725726,0.00016995,88247.0,88230.0,0.00016995]
[1766243725933,0.02686886,88246.0,88230.0,0.00016995]
[1766243726127,0.02686886,88245.0,88230.0,0.00016995]
[1766243726328,0.00016995,88247.0,88230.0,0.00016995]
[1766243726632,0.0268689,88246.0,88230.0,0.00016995]
[1766243726833,0.0268689,88245.0,88230.0,0.00016995]
[1766243727028,0.00016995,88247.0,88230.0,0.00016995]
[1766243727331,0.0268689,88246.0,88230.0,0.00016995]
[1766243727528,0.0268689,88245.0,88230.0,0.00016995]
[1766243727729,0.00016995,88247.0,88230.0,0.00016995]
[1766243727931,0.02686898,88246.0,88230.0,0.22872343]
[1766243728130,0.02686898,88245.0,88230.0,0.22872343]
[1766243728320,0.00016995,88247.0,88230.0,0.22872343]
[1766243728524,0.02686914,88246.0,88230.0,0.22872343]
[1766243728727,0.02686914,88245.0,88230.0,0.22872343]
[1766243728928,0.00016995,88247.0,88230.0,0.22872343]
[1766243729128,0.02686914,88246.0,88230.0,0.22872343]
[1766243729331,0.02686914,88245.0,88230.0,0.22872343]
[1766243729531,0.00016995,88247.0,88230.0,0.22872343]
[1766243729731,0.02686921,88246.0,88230.0,0.22872343]
[1766243729933,0.02686921,88245.0,88230.0,0.00016995]
[1766243730134,0.00016995,88247.0,88230.0,0.00016995]
[1766243730324,0.02686921,88246.0,88230.0,0.00016995]
[1766243730528,0.02686921,88245.0,88230.0,0.00016995]
[1766243730828,0.00016995,88247.0,88230.0,0.00016995]
[1766243731128,0.02686922,88246.0,88230.0,0.22872343]
[1766243731329,0.02686922,88245.0,88230.0,0.22872343]
[1766243731528,0.00016995,88247.0,88231.0,0.0113389]
[1766243731737,0.0268688,88246.0,88231.0,0.0113389]
[1766243731938,0.00016995,88247.0,88231.0,0.0113389]
[1766243732138,0.02686878,88246.0,88231.0,0.0113389]
[1766243732432,0.00016995,88247.0,88231.0,0.0113389]
[1766243732638,0.02686823,88246.0,88231.0,0.0113389]
[1766243732944,0.00016995,88247.0,88231.0,0.0113389]
[1766243733134,0.02686823,88246.0,88231.0,0.0113389]
[1766243733438,0.00016995,88247.0,88231.0,0.0113389]
[1766243733634,0.02686787,88246.0,88231.0,0.0113389]
[1766243733825,0.00016995,88247.0,88231.0,0.0113389]
[1766243734024,0.02686787,88246.0,88231.0,0.0113389]
[1766243734230,0.00016995,88247.0,88231.0,0.0113389]
[1766243734430,0.02686757,88246.0,88231.0,0.0113389]
[1766243734739,0.00016995,88247.0,88231.0,0.0113389]
[1766243735040,0.02686757,88246.0,88231.0,0.0113389]
[1766243735339,0.00016995,88247.0,88231.0,0.0113389]
[1766243735539,0.02686733,88246.0,88231.0,0.0113389]
[1766243735738,0.00016995,88247.0,88231.0,0.0113389]
[1766243735939,0.02686733,88246.0,88231.0,0.0113389]
[1766243736140,0.00016995,88247.0,88231.0,0.0113389]
[1766243736340,0.02686733,88246.0,88231.0,0.0113389]
[1766243736531,0.00016995,88247.0,88231.0,0.0113389]
[1766243736731,0.02686713,88246.0,88231.0,0.0113389]
[1766243737031,0.00016995,88247.0,88231.0,0.0113389]
[1766243737341,0.02686713,88246.0,88231.0,0.0113389]
[1766243737639,0.00016995,88247.0,88231.0,0.0113389]
[1766243737839,0.02686695,88246.0,88231.0,0.0113389]
[1766243738040,0.00016995,88247.0,88231.0,0.0113389]
[1766243738236,0.02686695,88246.0,88231.0,0.0113389]
[1766243738437,0.00016995,88247.0,88231.0,0.0113389]
[1766243738741,0.02686681,88246.0,88231.0,0.0113389]
[1766243738937,0.00016995,88247.0,88231.0,0.0113389]
[1766243739138,0.02686681,88246.0,88231.0,0.0113389]
[1766243739335,0.00016995,88247.0,88232.0,0.02836]
[1766243739537,0.02686668,88246.0,88232.0,0.02836]
[1766243739736,0.00016995,88247.0,88232.0,0.02836]
[1766243739937,0.02686668,88246.0,88232.0,0.02836]
[1766243740139,0.00016995,88247.0,88232.0,0.02836]
[1766243740444,0.02686668,88246.0,88232.0,0.02836]
[1766243740642,0.00016995,88247.0,88232.0,0.02836]
[1766243740943,0.02686652,88246.0,88232.0,0.02836]
[1766243741145,0.00016995,88247.0,88232.0,0.02836]
[1766243741348,0.02686652,88246.0,88232.0,0.02836]
[1766243741643,0.00016995,88247.0,88232.0,0.02836]
[1766243741843,0.02686642,88246.0,88232.0,0.02836]
[1766243742043,0.00016995,88247.0,88232.0,0.02836]
[1766243742255,0.02686642,88246.0,88232.0,0.02836]
[1766243742543,0.00016995,88247.0,88232.0,0.02836]
[1766243742745,0.0268664,88246.0,88232.0,0.02836]
[1766243743045,0.00016995,88247.0,88232.0,0.02836]
[1766243743247,0.0268664,88246.0,88232.0,0.02836]
[1766243743546,0.02686711,88245.0,88232.0,0.02836]
[1766243743746,0.00016995,88247.0,88232.0,0.02836]
[1766243743948,0.02686711,88246.0,88232.0,0.02836]
[1766243744148,0.00016995,88247.0,88232.0,0.02836]
[1766243744343,0.0268671,88246.0,88232.0,0.02836]
[1766243744649,0.00016995,88247.0,88232.0,0.02836]
[1766243744849,0.02686709,88246.0,88232.0,0.02836]
[1766243745042,0.00016995,88247.0,88232.0,0.02836]
[1766243745243,0.02686709,88246.0,88232.0,0.02836]
[1766243745446,0.00016995,88247.0,88232.0,0.02836]
[1766243745645,0.02686709,88246.0,88232.0,0.02836]
[1766243745854,0.00016995,88247.0,88232.0,0.02836]
[1766243746044,0.02686709,88246.0,88232.0,0.02836]
[1766243746243,0.00016995,88247.0,88232.0,0.02836]
[1766243746452,0.02686709,88246.0,88232.0,0.02836]
[1766243746749,0.00016995,88247.0,88232.0,0.02836]
[1766243746945,0.02686709,88246.0,88232.0,0.02836]
[1766243747150,0.00016995,88247.0,88232.0,0.02836]
[1766243747446,0.02686709,88246.0,88232.0,0.02836]
[1766243747649,0.00016995,88247.0,88232.0,0.02836]
[1766243747848,0.02686709,88246.0,88232.0,0.02836]
[1766243748049,0.00016995,88247.0,88232.0,0.02836]
[1766243748249,0.02686709,88246.0,88232.0,0.02836]